[Event "GrandPrix_29.05"]
[Site "Chess.com"]
[Date "2020.05.29"]
[Round "6"]
[White "Malysch"]
[Black "yamalchess"]
[Result "1/2-1/2"]
[WhiteElo "2360"]
[BlackElo "2445"]
[TimeControl "600+2"]
[EndTime "12:03:30 PDT"]
[Termination "Game drawn - insufficient material"]

1. d4 {[%clk 0:10:00.4]} 1... f5 {[%clk 0:09:57.5]} 2. g3 {[%clk 0:09:58.7]}
2... Nf6 {[%clk 0:09:57.8]} 3. Bg2 {[%clk 0:09:59.4]} 3... g6 {[%clk 0:09:58.5]}
4. Nf3 {[%clk 0:09:59.6]} 4... Bg7 {[%clk 0:09:58.8]} 5. O-O {[%clk 0:09:59.7]}
5... O-O {[%clk 0:09:59.1]} 6. c4 {[%clk 0:09:59.9]} 6... d6 {[%clk 0:09:59.7]}
7. Nc3 {[%clk 0:10:00.2]} 7... Qe8 {[%clk 0:09:59.8]} 8. Re1 {[%clk 0:10:00]}
8... Qf7 {[%clk 0:10:00.1]} 9. e4 {[%clk 0:09:59.4]} 9... fxe4 {[%clk
0:09:37.6]} 10. Nxe4 {[%clk 0:10:01.3]} 10... Qxc4 {[%clk 0:08:18.8]} 11. Nxf6+
{[%clk 0:09:47.4]} 11... exf6 {[%clk 0:07:06.9]} 12. Re7 {[%clk 0:09:36.2]}
12... Na6 {[%clk 0:06:33.7]} 13. Bf4 {[%clk 0:09:21.6]} 13... g5 {[%clk
0:06:02.7]} 14. Be3 {[%clk 0:08:56.6]} 14... Bg4 {[%clk 0:05:08.6]} 15. Nd2
{[%clk 0:08:50.2]} 15... Bxd1 {[%clk 0:04:59.4]} 16. Nxc4 {[%clk 0:08:49]} 16...
Be2 {[%clk 0:05:00.8]} 17. Na5 {[%clk 0:06:46.7]} 17... Rae8 {[%clk 0:04:57.9]}
18. Bd5+ {[%clk 0:06:21.2]} 18... Kh8 {[%clk 0:04:57.1]} 19. Rxe8 {[%clk
0:06:21.8]} 19... Rxe8 {[%clk 0:04:58.1]} 20. Bxb7 {[%clk 0:06:22]} 20... f5
{[%clk 0:04:23.6]} 21. Re1 {[%clk 0:06:02.3]} 21... Bd3 {[%clk 0:04:23.5]} 22.
Rd1 {[%clk 0:05:59.5]} 22... Bb5 {[%clk 0:04:20.8]} 23. Bxg5 {[%clk 0:05:20.5]}
23... Nb4 {[%clk 0:04:14.3]} 24. a3 {[%clk 0:05:04.7]} 24... Nc2 {[%clk
0:04:01.4]} 25. Nc6 {[%clk 0:04:46.6]} 25... a5 {[%clk 0:03:04.6]} 26. Rd2
{[%clk 0:03:59.4]} 26... Ne1 {[%clk 0:02:24.3]} 27. Nxa5 {[%clk 0:03:57.4]}
27... c6 {[%clk 0:02:19.5]} 28. Bf4 {[%clk 0:02:04.3]} 28... Nf3+ {[%clk
0:02:12.2]} 29. Kg2 {[%clk 0:02:05.7]} 29... Nxd2 {[%clk 0:02:12.6]} 30. Bxd2
{[%clk 0:02:07.6]} 30... Bxd4 {[%clk 0:02:09.3]} 31. Bxc6 {[%clk 0:01:34.5]}
31... Re2 {[%clk 0:02:03.5]} 32. Bxb5 {[%clk 0:01:15.2]} 32... Rxf2+ {[%clk
0:02:02.3]} 33. Kh3 {[%clk 0:01:15.8]} 33... Rxd2 {[%clk 0:02:02.9]} 34. Nb3
{[%clk 0:01:12.2]} 34... Rd1 {[%clk 0:01:17.8]} 35. Be2 {[%clk 0:01:11.9]} 35...
Rb1 {[%clk 0:01:17]} 36. Nxd4 {[%clk 0:01:10.4]} 36... Rxb2 {[%clk 0:01:18.1]}
37. Bb5 {[%clk 0:00:56.7]} 37... Kg7 {[%clk 0:01:17.4]} 38. a4 {[%clk
0:00:47.9]} 38... Kf6 {[%clk 0:01:17.5]} 39. Nf3 {[%clk 0:00:27.5]} 39... Ra2
{[%clk 0:01:15.2]} 40. g4 {[%clk 0:00:23.1]} 40... fxg4+ {[%clk 0:01:12.4]} 41.
Kxg4 {[%clk 0:00:23.8]} 41... d5 {[%clk 0:01:13.2]} 42. Kf4 {[%clk 0:00:24.1]}
42... Ke6 {[%clk 0:01:09.6]} 43. h4 {[%clk 0:00:23.1]} 43... h6 {[%clk
0:01:06.6]} 44. Ke3 {[%clk 0:00:20.6]} 44... Kf5 {[%clk 0:01:00.9]} 45. Kd4
{[%clk 0:00:16]} 45... Kf4 {[%clk 0:01:01.6]} 46. Ne5 {[%clk 0:00:15.6]} 46...
Rh2 {[%clk 0:00:50.6]} 47. Kxd5 {[%clk 0:00:12.8]} 47... Kf5 {[%clk 0:00:41.2]}
48. Bd3+ {[%clk 0:00:09.7]} 48... Kf4 {[%clk 0:00:41.7]} 49. a5 {[%clk
0:00:08.8]} 49... Kg3 {[%clk 0:00:41.8]} 50. a6 {[%clk 0:00:08.3]} 50... Rxh4
{[%clk 0:00:42.7]} 51. Nc4 {[%clk 0:00:07.9]} 51... Rf4 {[%clk 0:00:37.8]} 52.
a7 {[%clk 0:00:07.7]} 52... Rf8 {[%clk 0:00:38.5]} 53. Nb6 {[%clk 0:00:07.5]}
53... h5 {[%clk 0:00:39.6]} 54. a8=Q {[%clk 0:00:03.8]} 54... Rxa8 {[%clk
0:00:40.6]} 55. Nxa8 {[%clk 0:00:05.7]} 55... h4 {[%clk 0:00:41.9]} 56. Ke4
{[%clk 0:00:04.6]} 56... h3 {[%clk 0:00:42.3]} 57. Ke3 {[%clk 0:00:05.5]} 57...
Kg2 {[%clk 0:00:42]} 58. Be4+ {[%clk 0:00:06.1]} 58... Kg1 {[%clk 0:00:43]} 59.
Kf4 {[%clk 0:00:06]} 59... h2 {[%clk 0:00:43.8]} 60. Kg3 {[%clk 0:00:06.8]}
60... h1=Q {[%clk 0:00:44.7]} 61. Bxh1 {[%clk 0:00:08.3]} 61... Kxh1 {[%clk
0:00:45.9]} 1/2-1/2

[Event "GrandPrix_29.05"]
[Site "Chess.com"]
[Date "2020.05.29"]
[Round "6"]
[White "klippfiskkjerringa"]
[Black "Frozygul"]
[Result "0-1"]
[WhiteElo "1990"]
[BlackElo "2156"]
[TimeControl "600+2"]
[EndTime "12:03:31 PDT"]
[Termination "Frozygul won by checkmate"]

1. Nf3 {[%clk 0:10:01.9]} 1... c5 {[%clk 0:10:00.2]} 2. e3 {[%clk 0:10:02.3]}
2... Nc6 {[%clk 0:10:01]} 3. d4 {[%clk 0:10:03.6]} 3... cxd4 {[%clk 0:09:58.3]}
4. exd4 {[%clk 0:10:04.9]} 4... d6 {[%clk 0:09:49.3]} 5. c4 {[%clk 0:09:54.7]}
5... g6 {[%clk 0:09:41.5]} 6. d5 {[%clk 0:09:53.5]} 6... Ne5 {[%clk 0:09:38.7]}
7. Nxe5 {[%clk 0:09:50.2]} 7... dxe5 {[%clk 0:09:40.6]} 8. Nc3 {[%clk
0:09:50.5]} 8... Bg7 {[%clk 0:09:29.8]} 9. c5 {[%clk 0:09:39.8]} 9... Nf6 {[%clk
0:09:24.5]} 10. Bb5+ {[%clk 0:09:37.6]} 10... Kf8 {[%clk 0:09:08]} 11. O-O
{[%clk 0:09:28.1]} 11... h6 {[%clk 0:09:01.1]} 12. h3 {[%clk 0:09:13.9]} 12...
Kg8 {[%clk 0:09:01.4]} 13. Be3 {[%clk 0:08:59.5]} 13... Kh7 {[%clk 0:09:00.8]}
14. b4 {[%clk 0:08:56.6]} 14... a5 {[%clk 0:08:52.1]} 15. bxa5 {[%clk
0:08:44.5]} 15... Qxa5 {[%clk 0:08:46.1]} 16. Qb3 {[%clk 0:08:39.4]} 16... Rd8
{[%clk 0:07:37.3]} 17. a4 {[%clk 0:08:31.5]} 17... e4 {[%clk 0:07:13.9]} 18. Bd4
{[%clk 0:08:19.4]} 18... Be6 {[%clk 0:06:36.1]} 19. dxe6 {[%clk 0:07:10.9]}
19... Rxd4 {[%clk 0:06:33.7]} 20. exf7 {[%clk 0:07:09.8]} 20... Nd7 {[%clk
0:06:09.7]} 21. Rad1 {[%clk 0:03:37.2]} 21... Nxc5 {[%clk 0:05:54]} 22. Qc2
{[%clk 0:03:37.6]} 22... Rxd1 {[%clk 0:05:43.3]} 23. Nxd1 {[%clk 0:03:36.7]}
23... Nxa4 {[%clk 0:05:08.2]} 24. Be8 {[%clk 0:03:36.9]} 24... Nc5 {[%clk
0:04:35.2]} 25. Ne3 {[%clk 0:03:36.6]} 25... Nd3 {[%clk 0:04:05.3]} 26. Rb1
{[%clk 0:03:25.1]} 26... Qe5 {[%clk 0:03:51.6]} 27. Nc4 {[%clk 0:03:14]} 27...
Qf4 {[%clk 0:03:38.8]} 28. Qe2 {[%clk 0:02:50.9]} 28... Bd4 {[%clk 0:03:30.2]}
29. Ne3 {[%clk 0:02:27]} 29... Nxf2 {[%clk 0:03:16.1]} 30. Rf1 {[%clk
0:01:54.4]} 30... Kg7 {[%clk 0:03:07.5]} 31. Qxf2 {[%clk 0:00:18.4]} 31... Bxe3
{[%clk 0:02:59]} 32. f8=Q+ {[%clk 0:00:18.8]} 32... Qxf8 {[%clk 0:02:47.7]} 33.
Qxe3 {[%clk 0:00:20]} 33... Qxe8 {[%clk 0:02:47.7]} 34. Qd4+ {[%clk 0:00:21.2]}
34... e5 {[%clk 0:02:41.8]} 35. Qxe4 {[%clk 0:00:22.6]} 35... Rb8 {[%clk
0:02:28.3]} 36. Rb1 {[%clk 0:00:22.3]} 36... b5 {[%clk 0:02:24.2]} 37. Rc1
{[%clk 0:00:21.5]} 37... Qe7 {[%clk 0:02:12.7]} 38. Rc6 {[%clk 0:00:21.1]} 38...
Qg5 {[%clk 0:02:12.6]} 39. Rc7+ {[%clk 0:00:18.8]} 39... Kh8 {[%clk 0:02:10.6]}
40. Rc6 {[%clk 0:00:13.2]} 40... b4 {[%clk 0:01:59]} 41. Rxg6 {[%clk 0:00:13.1]}
41... Qc1+ {[%clk 0:01:58.5]} 42. Kh2 {[%clk 0:00:14.6]} 42... Qf4+ {[%clk
0:01:54.8]} 43. Qxf4 {[%clk 0:00:15.6]} 43... exf4 {[%clk 0:01:56]} 44. Rxh6+
{[%clk 0:00:16.6]} 44... Kg7 {[%clk 0:01:52.3]} 45. Rd6 {[%clk 0:00:17]} 45...
b3 {[%clk 0:01:48.9]} 46. Rd1 {[%clk 0:00:17.9]} 46... b2 {[%clk 0:01:45.6]} 47.
Rb1 {[%clk 0:00:18.7]} 47... Rb3 {[%clk 0:01:41.3]} 48. Kg1 {[%clk 0:00:18.9]}
48... Kf6 {[%clk 0:01:40.3]} 49. Kf2 {[%clk 0:00:20.3]} 49... Kg5 {[%clk
0:01:25.2]} 50. Ke2 {[%clk 0:00:20.9]} 50... Kh4 {[%clk 0:01:22.4]} 51. Kf2
{[%clk 0:00:17.7]} 51... Rb8 {[%clk 0:01:00.8]} 52. Kf3 {[%clk 0:00:18.3]} 52...
Rb4 {[%clk 0:01:01.6]} 53. Kf2 {[%clk 0:00:15.4]} 53... Rb3 {[%clk 0:01:00.2]}
54. Ke2 {[%clk 0:00:14.6]} 54... Kg3 {[%clk 0:01:00.8]} 55. Kf1 {[%clk
0:00:15.9]} 55... Rb8 {[%clk 0:00:46.7]} 56. h4 {[%clk 0:00:17]} 56... Kxh4
{[%clk 0:00:46.3]} 57. Kf2 {[%clk 0:00:18.1]} 57... Kg4 {[%clk 0:00:44.7]} 58.
Ke2 {[%clk 0:00:13.1]} 58... Kg3 {[%clk 0:00:42.1]} 59. Kf1 {[%clk 0:00:14.4]}
59... Rb7 {[%clk 0:00:39.8]} 60. Kg1 {[%clk 0:00:14.8]} 60... Rc7 {[%clk
0:00:39.5]} 61. Rxb2 {[%clk 0:00:03.3]} 61... Rc1# {[%clk 0:00:41.4]} 0-1

[Event "GrandPrix_29.05"]
[Site "Chess.com"]
[Date "2020.05.29"]
[Round "6"]
[White "PavelShkapenko"]
[Black "Valeriy_Neverov"]
[Result "1-0"]
[WhiteElo "2464"]
[BlackElo "2377"]
[TimeControl "600+2"]
[EndTime "12:03:34 PDT"]
[Termination "PavelShkapenko won on time"]

1. e4 {[%clk 0:10:00]} 1... c5 {[%clk 0:09:59.9]} 2. c3 {[%clk 0:10:01.5]} 2...
Nf6 {[%clk 0:09:58.6]} 3. e5 {[%clk 0:10:02.9]} 3... Nd5 {[%clk 0:09:59.7]} 4.
d4 {[%clk 0:10:04.6]} 4... cxd4 {[%clk 0:10:00.8]} 5. cxd4 {[%clk 0:10:06.2]}
5... e6 {[%clk 0:09:57.7]} 6. Nc3 {[%clk 0:10:06.6]} 6... Nxc3 {[%clk
0:09:55.6]} 7. bxc3 {[%clk 0:10:07.5]} 7... d6 {[%clk 0:09:55.1]} 8. f4 {[%clk
0:10:08]} 8... Qc7 {[%clk 0:09:27]} 9. Bd2 {[%clk 0:10:07.5]} 9... b6 {[%clk
0:09:10.1]} 10. Bd3 {[%clk 0:10:06.5]} 10... Bb7 {[%clk 0:09:09.3]} 11. Nf3
{[%clk 0:10:07.1]} 11... Nd7 {[%clk 0:09:02.6]} 12. O-O {[%clk 0:10:07.4]} 12...
Be7 {[%clk 0:08:57.8]} 13. Qe2 {[%clk 0:10:08]} 13... O-O {[%clk 0:08:28.2]} 14.
c4 {[%clk 0:10:01.5]} 14... Rfe8 {[%clk 0:08:14]} 15. Qf2 {[%clk 0:09:49.5]}
15... Nf8 {[%clk 0:08:02.2]} 16. Qg3 {[%clk 0:09:45.6]} 16... Rad8 {[%clk
0:07:58.1]} 17. Be3 {[%clk 0:08:25.5]} 17... Ng6 {[%clk 0:07:23.8]} 18. Rad1
{[%clk 0:05:55.2]} 18... dxe5 {[%clk 0:04:15]} 19. fxe5 {[%clk 0:05:51]} 19...
f5 {[%clk 0:04:15.5]} 20. Ng5 {[%clk 0:04:54.7]} 20... Bxg5 {[%clk 0:04:04.9]}
21. Qxg5 {[%clk 0:04:51.3]} 21... Be4 {[%clk 0:03:59.2]} 22. Be2 {[%clk
0:03:45.9]} 22... Qe7 {[%clk 0:03:36.7]} 23. Qg3 {[%clk 0:03:41.7]} 23... Qa3
{[%clk 0:03:23.8]} 24. Rd2 {[%clk 0:02:20.5]} 24... Rd7 {[%clk 0:02:51.7]} 25.
Bd1 {[%clk 0:01:50]} 25... a5 {[%clk 0:02:26.2]} 26. Bh5 {[%clk 0:01:14.6]}
26... Red8 {[%clk 0:01:48.2]} 27. Bxg6 {[%clk 0:01:03.8]} 27... hxg6 {[%clk
0:01:48.2]} 28. Bf2 {[%clk 0:01:05.3]} 28... Qxg3 {[%clk 0:01:46.9]} 29. hxg3
{[%clk 0:01:06.2]} 29... Rc8 {[%clk 0:01:39.8]} 30. Rb2 {[%clk 0:00:45.7]} 30...
Rxc4 {[%clk 0:01:32.4]} 31. Rxb6 {[%clk 0:00:46.7]} 31... Bd5 {[%clk 0:01:25.3]}
32. Rfb1 {[%clk 0:00:44.1]} 32... g5 {[%clk 0:01:16.3]} 33. R6b5 {[%clk
0:00:38.8]} 33... a4 {[%clk 0:01:13.8]} 34. a3 {[%clk 0:00:34.4]} 34... Rdc7
{[%clk 0:01:10]} 35. Rc5 {[%clk 0:00:35]} 35... R7xc5 {[%clk 0:01:06.4]} 36.
dxc5 {[%clk 0:00:36]} 36... g4 {[%clk 0:01:00.7]} 37. Rb4 {[%clk 0:00:34.1]}
37... Rc1+ {[%clk 0:00:59.7]} 38. Kh2 {[%clk 0:00:35.1]} 38... Rc2 {[%clk
0:00:58.9]} 39. Kg1 {[%clk 0:00:36.1]} 39... g5 {[%clk 0:00:53.3]} 40. Rxa4
{[%clk 0:00:16.7]} 40... Kf7 {[%clk 0:00:52.8]} 41. Rb4 {[%clk 0:00:16.3]} 41...
Kg6 {[%clk 0:00:51.7]} 42. Kf1 {[%clk 0:00:16.6]} 42... Bc4+ {[%clk 0:00:45.2]}
43. Kg1 {[%clk 0:00:16.7]} 43... f4 {[%clk 0:00:41.9]} 44. c6 {[%clk 0:00:16.8]}
44... Bd5 {[%clk 0:00:35]} 45. c7 {[%clk 0:00:16.3]} 45... f3 {[%clk 0:00:16.7]}
46. gxf3 {[%clk 0:00:15]} 46... gxf3 {[%clk 0:00:17.2]} 47. Rb1 {[%clk
0:00:09.9]} 47... Rxc7 {[%clk 0:00:15.4]} 48. a4 {[%clk 0:00:11]} 48... Rc2
{[%clk 0:00:07.4]} 49. Ra1 {[%clk 0:00:11.1]} 49... Kf5 {[%clk 0:00:06.3]} 50.
a5 {[%clk 0:00:05.6]} 50... Kxe5 {[%clk 0:00:07]} 51. a6 {[%clk 0:00:06.9]}
51... Kf5 {[%clk 0:00:06.5]} 52. a7 {[%clk 0:00:07.9]} 52... Ba8 {[%clk
0:00:05.4]} 53. Rb1 {[%clk 0:00:09.1]} 53... e5 {[%clk 0:00:03.5]} 54. Rb8
{[%clk 0:00:09.6]} 54... Rc1+ {[%clk 0:00:03.6]} 55. Kh2 {[%clk 0:00:10.4]} 1-0

[Event "GrandPrix_29.05"]
[Site "Chess.com"]
[Date "2020.05.29"]
[Round "6"]
[White "Glek_Igor"]
[Black "Gareth-Bale11"]
[Result "0-1"]
[WhiteElo "2482"]
[BlackElo "2425"]
[TimeControl "600+2"]
[EndTime "12:03:36 PDT"]
[Termination "Gareth-Bale11 won on time"]

1. e4 {[%clk 0:10:01.9]} 1... e5 {[%clk 0:09:54.9]} 2. Nf3 {[%clk 0:10:01.9]}
2... Nc6 {[%clk 0:09:52.7]} 3. Nc3 {[%clk 0:10:03.1]} 3... Nf6 {[%clk
0:09:50.6]} 4. g3 {[%clk 0:10:04.4]} 4... d5 {[%clk 0:09:26.9]} 5. exd5 {[%clk
0:10:04.4]} 5... Nxd5 {[%clk 0:09:28.8]} 6. Bg2 {[%clk 0:10:05.8]} 6... Nxc3
{[%clk 0:09:29.3]} 7. bxc3 {[%clk 0:10:07.3]} 7... Bc5 {[%clk 0:09:28.8]} 8. O-O
{[%clk 0:10:08.3]} 8... O-O {[%clk 0:09:29.5]} 9. d3 {[%clk 0:10:09.6]} 9... Re8
{[%clk 0:09:26.5]} 10. Ng5 {[%clk 0:09:56.7]} 10... h6 {[%clk 0:09:22.7]} 11.
Ne4 {[%clk 0:09:55]} 11... Bb6 {[%clk 0:09:23]} 12. a4 {[%clk 0:09:35.6]} 12...
Be6 {[%clk 0:09:21.4]} 13. Be3 {[%clk 0:08:45.4]} 13... f5 {[%clk 0:09:07.5]}
14. Nd2 {[%clk 0:08:36.5]} 14... Qd7 {[%clk 0:07:36.3]} 15. Nc4 {[%clk
0:07:49.4]} 15... Bxc4 {[%clk 0:06:40.3]} 16. dxc4 {[%clk 0:07:46.4]} 16... Qxd1
{[%clk 0:06:42.2]} 17. Raxd1 {[%clk 0:07:42.7]} 17... e4 {[%clk 0:06:41.8]} 18.
Rd5 {[%clk 0:07:06.3]} 18... Re5 {[%clk 0:06:29.4]} 19. Bf4 {[%clk 0:06:55.5]}
19... Rxd5 {[%clk 0:06:28.7]} 20. cxd5 {[%clk 0:06:55.6]} 20... Na5 {[%clk
0:06:29.2]} 21. g4 {[%clk 0:06:45.3]} 21... Rf8 {[%clk 0:05:52]} 22. Bc1 {[%clk
0:06:22.8]} 22... fxg4 {[%clk 0:05:44.2]} 23. Bxe4 {[%clk 0:06:22.4]} 23... Nc4
{[%clk 0:05:43.6]} 24. Kg2 {[%clk 0:06:08.4]} 24... Nd6 {[%clk 0:05:33.9]} 25.
Bd3 {[%clk 0:05:53]} 25... Bc5 {[%clk 0:05:30.3]} 26. Kg3 {[%clk 0:05:01.2]}
26... Rf3+ {[%clk 0:05:18.7]} 27. Kxg4 {[%clk 0:04:57.8]} 27... Rxf2 {[%clk
0:05:19.7]} 28. Rxf2 {[%clk 0:04:27.6]} 28... Bxf2 {[%clk 0:05:21.6]} 29. h4
{[%clk 0:04:11.6]} 29... Kf7 {[%clk 0:05:06.6]} 30. h5 {[%clk 0:04:11.6]} 30...
Kf6 {[%clk 0:05:07.3]} 31. a5 {[%clk 0:02:59.4]} 31... Nf7 {[%clk 0:03:08.1]}
32. Kf3 {[%clk 0:02:02.5]} 32... Be1 {[%clk 0:02:57.8]} 33. Bb2 {[%clk
0:01:58.6]} 33... Ne5+ {[%clk 0:02:55]} 34. Ke4 {[%clk 0:01:54.2]} 34... Nxd3
{[%clk 0:02:53.2]} 35. cxd3 {[%clk 0:01:52.3]} 35... Kg5 {[%clk 0:02:52.5]} 36.
a6 {[%clk 0:01:43.6]} 36... b5 {[%clk 0:02:43.2]} 37. c4 {[%clk 0:01:42.9]}
37... b4 {[%clk 0:02:41.6]} 38. c5 {[%clk 0:01:37.9]} 38... b3 {[%clk
0:01:43.9]} 39. Bxg7 {[%clk 0:00:33.4]} 39... Kxh5 {[%clk 0:01:39.1]} 40. Kf5
{[%clk 0:00:32]} 40... Kh4 {[%clk 0:01:07.9]} 41. Bf6+ {[%clk 0:00:17]} 41...
Kg3 {[%clk 0:01:05.8]} 42. Kg6 {[%clk 0:00:16.6]} 42... Kf4 {[%clk 0:00:49.4]}
43. Kxh6 {[%clk 0:00:12.6]} 43... Ke3 {[%clk 0:00:50.6]} 44. d6 {[%clk
0:00:04.9]} 44... cxd6 {[%clk 0:00:49.1]} 45. cxd6 {[%clk 0:00:04.9]} 45... Kxd3
{[%clk 0:00:46.8]} 46. d7 {[%clk 0:00:02.9]} 46... Ba5 {[%clk 0:00:45.8]} 47.
Kg6 {[%clk 0:00:03]} 47... Kc4 {[%clk 0:00:26.3]} 48. Kf7 {[%clk 0:00:04.3]}
48... Kb5 {[%clk 0:00:27]} 49. Ke8 {[%clk 0:00:04.2]} 49... Kxa6 {[%clk
0:00:28.1]} 50. d8=Q {[%clk 0:00:05.3]} 50... Bxd8 {[%clk 0:00:28.9]} 51. Kxd8
{[%clk 0:00:06.5]} 51... Kb5 {[%clk 0:00:30]} 52. Kc7 {[%clk 0:00:07]} 52... a5
{[%clk 0:00:29.3]} 53. Kd6 {[%clk 0:00:08.1]} 53... a4 {[%clk 0:00:27.7]} 54.
Kd5 {[%clk 0:00:08.8]} 54... a3 {[%clk 0:00:27.3]} 0-1

[Event "GrandPrix_29.05"]
[Site "Chess.com"]
[Date "2020.05.29"]
[Round "6"]
[White "crazyboy26"]
[Black "IriBu"]
[Result "1/2-1/2"]
[WhiteElo "2344"]
[BlackElo "2254"]
[TimeControl "600+2"]
[EndTime "12:03:38 PDT"]
[Termination "Game drawn by repetition"]

1. e4 {[%clk 0:10:01.9]} 1... Nf6 {[%clk 0:10:00]} 2. e5 {[%clk 0:10:01.8]} 2...
Nd5 {[%clk 0:10:00.7]} 3. d4 {[%clk 0:10:02.6]} 3... d6 {[%clk 0:10:01.7]} 4.
Nf3 {[%clk 0:09:46.4]} 4... Bg4 {[%clk 0:10:01.4]} 5. Be2 {[%clk 0:09:41.7]}
5... c6 {[%clk 0:09:53.3]} 6. Ng5 {[%clk 0:09:29.7]} 6... Bxe2 {[%clk
0:09:32.5]} 7. Qxe2 {[%clk 0:09:30]} 7... dxe5 {[%clk 0:09:13.6]} 8. dxe5 {[%clk
0:09:28]} 8... e6 {[%clk 0:09:02.1]} 9. O-O {[%clk 0:09:15.6]} 9... Be7 {[%clk
0:08:37]} 10. Nf3 {[%clk 0:08:59.4]} 10... Bc5 {[%clk 0:08:04]} 11. c4 {[%clk
0:08:47.5]} 11... Ne7 {[%clk 0:08:03.3]} 12. Nc3 {[%clk 0:08:41.7]} 12... Ng6
{[%clk 0:07:59.6]} 13. Ne4 {[%clk 0:08:37.3]} 13... Be7 {[%clk 0:07:54.4]} 14.
Rd1 {[%clk 0:08:30.8]} 14... Qc7 {[%clk 0:07:54.5]} 15. Nd6+ {[%clk 0:08:26.8]}
15... Bxd6 {[%clk 0:07:54.5]} 16. exd6 {[%clk 0:08:25.7]} 16... Qd7 {[%clk
0:07:31]} 17. h4 {[%clk 0:08:08.9]} 17... h5 {[%clk 0:07:10.6]} 18. b4 {[%clk
0:07:50.5]} 18... a5 {[%clk 0:06:48.9]} 19. b5 {[%clk 0:07:50.1]} 19... f6
{[%clk 0:06:32.3]} 20. Qe4 {[%clk 0:07:16.7]} 20... Kf7 {[%clk 0:06:29.5]} 21.
Rb1 {[%clk 0:07:07.2]} 21... Re8 {[%clk 0:05:48.6]} 22. Be3 {[%clk 0:06:24.7]}
22... Nf8 {[%clk 0:05:34]} 23. a4 {[%clk 0:05:58.5]} 23... e5 {[%clk 0:05:17.4]}
24. c5 {[%clk 0:05:40.6]} 24... Ra7 {[%clk 0:04:57.7]} 25. Nd2 {[%clk
0:04:49.9]} 25... f5 {[%clk 0:04:29.3]} 26. Qf3 {[%clk 0:03:43.6]} 26... Kg8
{[%clk 0:04:29.8]} 27. Bg5 {[%clk 0:03:14.3]} 27... Qf7 {[%clk 0:04:05.5]} 28.
Rdc1 {[%clk 0:02:48.2]} 28... Nfd7 {[%clk 0:03:53.6]} 29. Be7 {[%clk 0:02:23]}
29... e4 {[%clk 0:03:41.1]} 30. Qf4 {[%clk 0:02:07.8]} 30... Nf8 {[%clk
0:03:27.4]} 31. Bxf8 {[%clk 0:01:59.9]} 31... Rxf8 {[%clk 0:03:20.9]} 32. Nc4
{[%clk 0:01:57.8]} 32... Nd7 {[%clk 0:03:08.3]} 33. Ne5 {[%clk 0:01:58.1]} 33...
Nxe5 {[%clk 0:02:58.5]} 34. Qxe5 {[%clk 0:02:00]} 34... Re8 {[%clk 0:02:59.6]}
35. Qf4 {[%clk 0:01:59.9]} 35... Qe6 {[%clk 0:02:45.2]} 36. Rc3 {[%clk
0:01:55.2]} 36... Qd5 {[%clk 0:02:36.9]} 37. Rg3 {[%clk 0:01:19]} 37... Rf8
{[%clk 0:02:11]} 38. Qg5 {[%clk 0:00:58.6]} 38... Qf7 {[%clk 0:02:10.3]} 39. Qf4
{[%clk 0:00:33.3]} 39... Raa8 {[%clk 0:02:06.4]} 40. bxc6 {[%clk 0:00:28.3]}
40... bxc6 {[%clk 0:02:07]} 41. Rg5 {[%clk 0:00:19.1]} 41... Rad8 {[%clk
0:01:52.1]} 42. Rb6 {[%clk 0:00:17.9]} 42... Rd7 {[%clk 0:01:20.6]} 43. Rxc6
{[%clk 0:00:17.2]} 43... Qd5 {[%clk 0:01:21.8]} 44. Rc7 {[%clk 0:00:10.9]} 44...
Rxc7 {[%clk 0:01:22.4]} 45. dxc7 {[%clk 0:00:11.8]} 45... Qxc5 {[%clk
0:01:23.6]} 46. Rxh5 {[%clk 0:00:08.3]} 46... Rf7 {[%clk 0:01:14]} 47. Qg5
{[%clk 0:00:04.5]} 47... Qxc7 {[%clk 0:01:06.6]} 48. Qg6 {[%clk 0:00:05.4]}
48... Qc1+ {[%clk 0:01:04.3]} 49. Kh2 {[%clk 0:00:06]} 49... Qf4+ {[%clk
0:01:00.7]} 50. Kh3 {[%clk 0:00:06.2]} 50... Qxf2 {[%clk 0:00:43.8]} 51. Qh7+
{[%clk 0:00:04.7]} 51... Kf8 {[%clk 0:00:44.8]} 52. Rg5 {[%clk 0:00:04.6]} 52...
e3 {[%clk 0:00:35.1]} 53. Qh8+ {[%clk 0:00:04.7]} 53... Ke7 {[%clk 0:00:36.3]}
54. Qb8 {[%clk 0:00:02.7]} 54... e2 {[%clk 0:00:13.5]} 55. Qc7+ {[%clk
0:00:03.6]} 55... Ke8 {[%clk 0:00:14.7]} 56. Qc8+ {[%clk 0:00:04.4]} 56... Ke7
{[%clk 0:00:16]} 57. Qc7+ {[%clk 0:00:04.5]} 57... Ke8 {[%clk 0:00:17.4]} 58.
Qc8+ {[%clk 0:00:05]} 58... Ke7 {[%clk 0:00:18.9]} 59. Qc7+ {[%clk 0:00:04.8]}
1/2-1/2